Cogmind - Beta 13 @@@ ROGUE MODE // 2024.04.17 @ 02:08:13 Player: Person Guy Result: Destroyed by D-53 Grenadier with Mini Grenade Launcher Performance ------------- Evolutions (0) 0 Regions Visited (4) 800 Robots Destroyed (28) 140 Value Destroyed (859) 859 Prototype IDs (2) 40 Alien Tech Used (0) 0 Bonus (-8) -8 TOTAL SCORE: 1831 Bonus ------- Follower Combat Kills 35 Friendly Fire -43 Cogmind --------- Core Integrity 0/250 Matter 155/300 Energy 100/100 System Corruption 1% Temperature Cool (0) Movement Walking (190) Ox1 Location -9/Mines Parts ------- > --- POWER (1) -------- (None) > --- PROPULSION (2) --- Aluminum Leg > --- UTILITY (2) ------ Large Storage Unit > --- WEAPON (2) ------- (None) > --- INVENTORY (15) --- Ion Engine Ion Engine Light Treads Aluminum Leg Aluminum Leg Large Storage Unit Grenade Launcher Peak State ------------ > --- POWER ------------ Ion Engine > --- PROPULSION ------- Aluminum Leg Aluminum Leg > --- UTILITY ---------- Large Storage Unit > --- WEAPON ----------- Light Assault Rifle Light Cannon > --- INVENTORY -------- Ion Engine Ion Engine Light Nuclear Core Light Treads Aluminum Leg Aluminum Leg Large Storage Unit Grenade Launcher Grenade Launcher [Rating: 7] Favorites ----------- Power Ion Engine Engine Ion Engine Propulsion Aluminum Leg Treads Light Treads Leg Aluminum Leg Utility Large Storage Unit Storage Large Storage Unit Weapon Light Assault Rifle Ballistic Gun Light Assault Rifle Ballistic Cannon Light Cannon Launcher Grenade Launcher Build | -11 -10 -10 -10 -9 ------- Run | Yrd Mat Min Exi Min Slots Evolved . | . . . . . Power . | . . . . . Propulsion . | . . . . . Utility . | . . . . . Weapon . | . . . . . Parts Attached 27 | 6 11 6 . 4 Power 3 | 1 1 1 . . Engine 3 | 1 1 1 . . Core . | . . . . . Reactor . | . . . . . Propulsion 5 | 2 2 1 . . Treads 2 | 2 . . . . Leg 3 | . 2 1 . . Wheel . | . . . . . Hover . | . . . . . Flight . | . . . . . Utility 2 | 1 1 . . . Device . | . . . . . Storage 2 | 1 1 . . . Processor . | . . . . . Hackware . | . . . . . Protection . | . . . . . Artifact . | . . . . . Weapon 17 | 2 7 4 . 4 Energy Gun . | . . . . . Energy Cannon . | . . . . . Ballistic Gun 8 | 2 3 2 . 1 Ballistic Cannon 5 | . 4 . . 1 Launcher 4 | . . 2 . 2 Special Weapon . | . . . . . Impact Weapon . | . . . . . Slashing Weapon . | . . . . . Piercing Weapon . | . . . . . Special Melee Weapon . | . . . . . Unidentified Prototypes . | . . . . . Parts Lost 7 | . 1 1 . 5 Power 2 | . 1 . . 1 Propulsion 2 | . . 1 . 1 Utility . | . . . . . Weapon 3 | . . . . 3 Highest Loss Streak 5 | . 1 1 . 5 To Critical Strikes . | . . . . . Average Slot Usage (%) 84 | . 84 84 85 83 Engine 13 | . 13 14 14 14 Treads 3 | . 7 . . . Leg 24 | . 20 27 28 28 Storage 14 | . 14 14 14 14 Ballistic Gun 17 | . 22 12 14 19 Ballistic Cannon 9 | . 5 14 14 5 Naked Turns . | . . . . . Heaviest Build 31 | 13 30 31 29 29 Greatest Support 40 | 40 40 20 20 20 Greatest Overweight (x) 2 | . 1 2 1 2 Average Overweight (x) . | . . 1 1 1 Largest Inventory Capacity 15 | 8 15 15 15 15 Average Capacity 13 | 6 12 15 15 15 Most Carried 9 | 4 9 9 8 9 Average Carried 6 | . 5 8 8 7 Final Capacity 15 | 8 15 15 15 15 Final Carried 8 | . 8 8 8 7 Class Distribution -------------------- 100% | Mutant Dominant Class ---------------- Mutant | -10/Materials Mutant | -10/Mines Mutant | -10/Exiles Mutant | -9/Mines Resources | -11 -10 -10 -10 -9 ----------- Run | Yrd Mat Min Exi Min Matter Collected 873 | 149 434 181 . 109 Remotely . | . . . . . Salvage Created 953 | . 654 214 . 85 Parts 44 | . 29 13 . 2 Haulers Intercepted 1 | . 1 . . . Recyclers Shooed . | . . . . . Parts Field Recycled . | . . . . . Retrieved Matter . | . . . . . Parts Self-Destructed . | . . . . . Prevented . | . . . . . Kills | -11 -10 -10 -10 -9 ------- Run | Yrd Mat Min Exi Min Combat Hostiles Destroyed 29 | . 14 11 . 4 Guns 15 | . 12 1 . 2 Cannons 7 | . 2 5 . . AOE 7 | . . 5 . 2 Classes Destroyed 6 | . 4 2 . . Worker 1 | . 1 . . . Tunneler 2 | . . 2 . . Hauler 1 | . 1 . . . Operator 2 | . 2 . . . Grunt 22 | . 14 7 . 1 Assembled 7 | . . 4 . 3 Best Kill Streak 5 | . 4 5 . 2 Combat Bots Only 4 | . 4 4 . 2 Max Kills in Single Turn 2 | . 1 1 . 2 Gunslinging . | . . . . . Exploded 2 | . . 1 . 2 Melee . | . . . . . Uniques/NPCs Destroyed . | . . . . . Combat | -11 -10 -10 -10 -9 -------- Run | Yrd Mat Min Exi Min Hostile Shots Fired 112 | . 66 24 . 22 Missed 28 | . 15 8 . 5 Damage Taken 1321 | . 629 302 . 390 Core 250 | . 65 69 . 116 Absorbed by Shields . | . . . . . Core Remaining (%) 100 | 100 . . . . Volleys Fired 86 | . 51 27 . 8 Largest 2 | . 2 2 . 2 Hottest 65 | . 55 65 . 55 Shots Fired 171 | . 102 53 . 16 Gun 114 | . 92 14 . 8 Cannon 41 | . 10 27 . 4 Launcher 16 | . . 12 . 4 Special . | . . . . . Kinetic 155 | . 102 41 . 12 Thermal . | . . . . . Explosive 16 | . . 12 . 4 Electromagnetic . | . . . . . Robot Hit Streak 15 | . 15 6 . 4 Robot Miss Streak 4 | . 4 2 . 1 Penetration Max . | . . . . . Secondary Targets 1 | . 1 . . . Max Gunslinging Chain 1 | . 1 . . . Shots Hit Robots 112 | . 72 30 . 10 Core Hits 71 | . 36 25 . 10 Critical Kills . | . . . . . Critical Parts Destroyed . | . . . . . Critical Strikes 1 | . . 1 . . Blast 1 | . . 1 . . Melee Attacks . | . . . . . Impact . | . . . . . Slashing . | . . . . . Piercing . | . . . . . Sneak Attacks . | . . . . . Combat Hostiles . | . . . . . Follow-up Attacks . | . . . . . Damage Inflicted 1892 | . 820 817 . 255 Guns 812 | . 726 57 . 29 Cannons 463 | . 94 294 . 75 Explosions 617 | . . 466 . 151 Melee . | . . . . . Ramming . | . . . . . Kinetic 1275 | . 820 351 . 104 Thermal . | . . . . . Explosive 617 | . . 466 . 151 Electromagnetic . | . . . . . Impact . | . . . . . Slashing . | . . . . . Piercing . | . . . . . Highest Corruption 1 | . 1 1 1 1 Average Corruption 1 | . 1 1 1 1 Corruption Purged . | . . . . . Corruption Blocked . | . . . . . Effects 16 | . . 7 6 3 Message Errors 3 | . . 1 2 . Matter Fused 6 | . . 3 2 1 Heat Flow Errors 2 | . . 2 . . Energy Discharges 2 | . . . 2 . Data Loss (minor) 2 | . . 1 . 1 Data Loss (major) 1 | . . . . 1 Overload Shots . | . . . . . Overflow Damage 1 | . . . . 1 Projectiles . | . . . . . Explosions 1 | . . . . 1 Melee . | . . . . . Knockbacks 4 | . . 3 . 1 Impact . | . . . . . Kinetic 4 | . . 3 . 1 Secondary . | . . . . . Self-Inflicted Damage 102 | . . 102 . . Shots 5 | . . 5 . . Rammed . | . . . . . Targets Rammed . | . . . . . Kicked . | . . . . . Crushed . | . . . . . Highest Temperature 263 | . 25 263 . 23 Average Temperature 29 | . 8 45 . 11 Received Heat Transfer 523 | . 348 154 . 21 Siege Activations . | . . . . . Robots Corrupted . | . . . . . Combat Hostiles . | . . . . . Parts Fried . | . . . . . Impact Corruptions . | . . . . . Robots Melted . | . . . . . Combat Hostiles . | . . . . . Parts Melted . | . . . . . Heat Transferred . | . . . . . Parts Sabotaged . | . . . . . Parts Stolen . | . . . . . Parts Stripped . | . . . . . Power Chain Reactions . | . . . . . Alert | -11 -10 -10 -10 -9 ------- Run | Yrd Mat Min Exi Min Peak Influence 245 | . 245 108 . 86 Initial 23 | . . 23 . . Average 75 | . 82 72 . 73 Maximum Alert Level 1 | . 1 . . . Low Security (%) 94 | 100 87 100 . 100 Level 1 5 | . 12 . . . Level 2 . | . . . . . Level 3 . | . . . . . Level 4 . | . . . . . Level 5 . | . . . . . High Security . | . . . . . Max Security . | . . . . . Squads Dispatched 4 | . 4 . . . Investigation 2 | . 2 . . . Extermination . | . . . . . Reinforcement 2 | . 2 . . . Assault . | . . . . . Garrison . | . . . . . Intercept . | . . . . . Searches Triggered . | . . . . . Construction Impeded . | . . . . . Haulers Reinforced . | . . . . . Active Scanning Responses . | . . . . . Cargo Convoy Interrupts . | . . . . . Stealth | -11 -10 -10 -10 -9 --------- Run | Yrd Mat Min Exi Min Distress Signals 2 | . 2 . . . Communications Jammed . | . . . . . Distress Signals . | . . . . . Times Spotted 47 | . 25 11 . 11 Peak Tracking Total 6 | . 6 3 . 4 Tactical Retreats . | . . . . . Traps | -11 -10 -10 -10 -9 ------- Run | Yrd Mat Min Exi Min Traps Triggered 2 | . 2 . . . Indirectly . | . . . . . Trap Hack Attempts . | . . . . . Triggered . | . . . . . Disarmed . | . . . . . Reprogrammed . | . . . . . Reused . | . . . . . Traps Extracted . | . . . . . Installed . | . . . . . Triggered . | . . . . . Machines | -11 -10 -10 -10 -9 ---------- Run | Yrd Mat Min Exi Min Machines Disabled 1 | . . . . 1 Max in Single Turn 1 | . . . . 1 Machines Repaired . | . . . . . Machines Dismantled . | . . . . . Machines Sabotaged . | . . . . . Overloaded Fab Kills . | . . . . . Hacking | -11 -10 -10 -10 -9 --------- Run | Yrd Mat Min Exi Min Machines Accessed 4 | . 4 . . . Terminals 4 | . 4 . . . Fabricators . | . . . . . Repair Stations . | . . . . . Recycling Units . | . . . . . Scanalyzers . | . . . . . Garrison Access . | . . . . . Total Hacks 13 | . 13 . . . Successful 5 | . 5 . . . Failed 8 | . 8 . . . Catastrophic 2 | . 2 . . . Database Lockouts . | . . . . . Manual 7 | . 7 . . . Terminals 13 | . 13 . . . Fabricators . | . . . . . Repair Stations . | . . . . . Recycling Units . | . . . . . Scanalyzers . | . . . . . Garrison Access . | . . . . . Terminal Hacks 4 | . 4 . . . Prototype ID Bank 1 | . 1 . . . Alert Level 3 | . 3 . . . Fabricator Hacks . | . . . . . Repair Station Hacks . | . . . . . Recycling Unit Hacks . | . . . . . Scanalyzer . | . . . . . Garrison Access Hacks . | . . . . . Unauthorized Hacks 1 | . 1 . . . Terminals 1 | . 1 . . . Operators 1 | . 1 . . . Fabricators . | . . . . . Repair Stations . | . . . . . Recycling Units . | . . . . . Scanalyzers . | . . . . . Garrison Access . | . . . . . Data Cores Recovered . | . . . . . Used . | . . . . . Hacking Detections 4 | . 4 . . . Full Trace Events 1 | . 1 . . . Feedback Events . | . . . . . Feedback Blocked . | . . . . . Robot Schematics Acquired . | . . . . . Robots Built . | . . . . . Authchips . | . . . . . Time . | . . . . . Total Robot Build Rating . | . . . . . Part Schematics Acquired . | . . . . . Parts Built . | . . . . . Authchips . | . . . . . Time . | . . . . . Total Part Build Rating . | . . . . . Parts Repaired . | . . . . . Time . | . . . . . Parts Recycled . | . . . . . Recycled Matter . | . . . . . Retrieved Matter . | . . . . . Retrieved Components . | . . . . . Parts Scanalyzed . | . . . . . Part Schematics Acquired . | . . . . . Parts Damaged . | . . . . . Bothacking | -11 -10 -10 -10 -9 ------------ Run | Yrd Mat Min Exi Min Used RIF Installer . | . . . . . Robots Hacked . | . . . . . Non-combat . | . . . . . Combat . | . . . . . Robot Hacks Applied . | . . . . . Relay Couplers Released . | . . . . . Fabnet Peak Effective % . | . . . . . Robots Rewired . | . . . . . Allies Hacked . | . . . . . Hacks Repelled . | . . . . . Allies | -11 -10 -10 -10 -9 -------- Run | Yrd Mat Min Exi Min Total Allies 4 | . . 4 . . Largest Group 4 | . . 4 3 3 Highest-Rated Group 71 | . . 71 40 40 Highest-Rated Ally 31 | . . 31 16 16 Total Orders . | . . . . . Ally Attacks 35 | . . 2 . 33 Total Damage 302 | . . . . 302 Kills 4 | . . . . 4 Allies Corrupted . | . . . . . Allies Melted . | . . . . . Intel | -11 -10 -10 -10 -9 ------- Run | Yrd Mat Min Exi Min Robot Analysis Total . | . . . . . Derelict Logs Recovered 1 | . . 1 . . Drone Launches . | . . . . . Drone Recoveries . | . . . . . Exploration | -11 -10 -10 -10 -9 ------------- Run | Yrd Mat Min Exi Min Turns Passed 2704 | 67 1056 916 474 191 Spaces Moved 1276 | 39 474 429 250 84 Core 6 | 6 . . . . Treads 136 | 33 103 . . . Legs 1134 | . 371 429 250 84 Wheels . | . . . . . Hover . | . . . . . Flight . | . . . . . Fastest Speed 50 | 50 120 190 190 190 Average Speed 184 | 143 176 191 190 191 Slowest Speed 260 | 160 190 260 190 260 Overloaded Moves . | . . . . . Propulsion Burnouts . | . . . . . Robots Hopped . | . . . . . Cave-ins Triggered . | . . . . . Exploration Rate (%) 54 | 5 78 95 67 26 Regions Visited 4 Branch Regions 3 Pre-discovered Areas 2 | . . 2 . . Known Exits Taken . | . . . . . Unknown Exits Taken 4 | 1 1 1 1 . Scrap Searched . | . . . . . Spaces Dug . | . . . . . Terrain Destroyed 87 | . . 64 . 23 Melee . | . . . . . Projectile 1 | . . 1 . . AOE 86 | . . 63 . 23 Terrain Rammed . | . . . . . Walls Destroyed . | . . . . . Machines Disabled . | . . . . . Actions | -11 -10 -10 -10 -9 --------- Run | Yrd Mat Min Exi Min Total 1471 | 50 600 472 249 100 Wait 45 | . 38 7 . . Move 1272 | 38 473 428 249 84 Hop . | . . . . . Pick Up 28 | 6 18 2 . 2 Fast Attach . | . . . . . Attach 15 | 6 4 3 . 2 Detach 1 | . . 1 . . Swap 12 | . 7 3 . 2 Drop 12 | . 9 1 . 2 Fire 86 | . 51 27 . 8 Melee . | . . . . . Ram . | . . . . . Kick . | . . . . . Crush . | . . . . . Escape Stasis . | . . . . . Rewire . | . . . . . Trap . | . . . . . Miscellaneous . | . . . . . Route ------- -11/Scrapyard -10/Materials (discovered 4 exits: [*Mat x3] / [*Min]) -10/Mines (discovered 3 exits: [*Mat x2] / [*Exi]) -10/Exiles -9/Mines History --------- Turn | Location | Event 5 | -11/Scrapyard | Discovered new exit (range 15) 68 | -11/Scrapyard | Entered Materials 243 | -10/Materials | Discovered new exit (range 16) 313 | -10/Materials | Build established: Mutant 782 | -10/Materials | Discovered new exit (range 11) 872 | -10/Materials | Discovered new exit (range 9) 1061 | -10/Materials | Discovered new exit (range 12) 1124 | -10/Materials | Entered Mines 1142 | -10/Mines | Learned location of Zion (-6) 1237 | -10/Mines | Excavation squad dispatched 1237 | -10/Mines | A large section of the Mines collapsed 1336 | -10/Mines | Discovered new exit (range 16) 1531 | -10/Mines | Discovered new exit (range 12) 1535 | -10/Mines | Escorted by a lone wolf Derelict 1535 | -10/Mines | Core integrity fell below 50% 1555 | -10/Mines | Learned location of Storage (-8) 1735 | -10/Mines | Assisted by bots powering up and referring to "LRC-V3" 2031 | -10/Mines | Deemed a non-threat by the Exiles lab entrance 2032 | -10/Mines | Discovered new exit (range 5) 2040 | -10/Mines | Entered Exiles 2040 | -10/Exiles | Found Exiles lab abandoned 2040 | -10/Exiles | Accompanied by 4 allies 2489 | -10/Exiles | Discovered new exit (range 14) 2514 | -10/Exiles | Entered Mines 2514 | -9/Mines | Accompanied by 3 allies 2541 | -9/Mines | Assembled infested the area 2546 | -9/Mines | Assisted by a Guerilla fighting off Assembled 2702 | -9/Mines | Core integrity fell below 20% 2705 | -9/Mines | Destroyed by D-53 Grenadier with Mini Grenade Launcher Last Messages --------------- 02632_ K-01 Serf collects debris. 02636_ K-01 Serf cleans the Pressure Siphon. 02668_ as-46085 destroyed. 02673_ as-87653 suffers critical hit (Burn). 02673_ Hvy. Assault Rifle destroyed. 02676_ Trooper 1b destroyed. 02679_ as-87653 suffers critical hit (Burn). 02680_ as-56412 destroyed. 02685_ Destroyed Asb. Hover Unit. 02685_ Pressure Siphon disabled. 02685_ Mercenary 1a destroyed. 02685_ Trooper 1a destroyed. 02687_ as-87653 destroyed. 02699_ System corrupted: Substantial component data lost. 02699_ Lgt. Assault Rifle destroyed. 02699_ Grenade Launcher destroyed. 02701_ Aluminum Leg destroyed. 02705_ The unstable cave ceiling collapses. 02705_ Ion Engine destroyed. Map ----- +----------------------------------------------------+ | ?????? #?????????????????????? | | ?????? """ """ """ #?????????????????????? | | ?????# """ """ """ #?????????????????????? | | ?????# """ """ """ #?????????????????????? | | ?????# """ """ """ #?????????????????????? | | ?????# #?????????????????????? | | ?????# %= #?????????????????????? | | ?????# * *% #?????????????????????? | | ?????# #?????????????????????? | | ?????# #?????????????????????? | | ?????########## #T##?????????????????????? | | ??????????????# ###??????????????????????? | | ??????????????# #????????????????????????? | | ??????????????# ############?????????????? | | ??????????????# #?????????????? | | ??????????????########### #?????????????? | | ??????????????????????##; #?????????????? | | ?????????????????????##;#% ###???????????? | | ????????????????????## #???????????? | | ???????????????????##| = ##??????????? | | ???????????????#####[= #??????????? | | ??????????????## % ##??????????? | | ?????????????## #??????????? | | ?????????????# ## #??????????? | | ?????????????# ####"#%###??????????? | | ??????????????# @ ##### #????????????? | | ??????????????# # #??# #????????????? | | ?????????????# #?? #????????????? | | ?????????????# #?? ????????????? | | ???????????#### #? ????????????? | | ??????????## #? ????????????? | | ????##??### ##? %????????????? | | ???## ### # !????????????? | | ???# [ # ???????????? | | ???# ## =%[% d ????????? | | ???## #### =! ????????? | | ????# #?# [% # ##????????????? | | ????# #?# # ### #?????????????? | | ????# #?#### #???#?????????????? | | ????## #???? #?????????????????? | | ?????## ##???# "" #?????????????????? | | ??????####????# "" #?????????????????? | | ??????????????# " #?????????????????? | | ?????????????? """ #?????????????????? | | ?????????????? = ?????????????????? | | ?????????????? ?? #????????????????? | | ????????????? ?? #????????????????? | | ????????????? ????? #????????????????? | | ????????????? ??????#????????????????? | | ????????????? ????????????????????????? | +----------------------------------------------------+ Best States ------------- Heat Dissipation 25 Energy Generation 10 Energy Capacity 250 Matter Stores 300 Matter Capacity 300 Sight Range 16 Terrain Scan Density 10 Evasion (%) 55 Recoil Reduction 2 Item Schematics ----------------- None Robot Schematics ------------------ None Fabricated ------------ Nothing Alien Tech Used ----------------- None Achievements -------------- None Challenges ------------ None Game ------ Seed AssembledMassScanner Manual? 0 Play Time 00:13:36 Cumulative 74.3 hours Start 2024.04.17 @ 01:56:14 End 2024.04.17 @ 02:08:13 Sessions 1 Manual Loads 0 Difficulty Rogue Special Mode None Game No. 67 Rogue 67 Adventurer 0 Explorer 0 Win Type - Total 0 Types 0/0/0/0/0/0/0/0/0 Lore% 40 Gallery% 51 Achievement% 31 Wizard Run 0 Options --------- Layout 1 ASCII 0 Keyboard 0 Movement Numpad Keybinds 0 Fullscreen 1 Font 24/Smallcaps Map View 50x35 Zoom Use 0% Tactical HUD 1 Map Filters NONE Filters NONE Steam 1 RUN: af61e456-17b4-4257-9863-449959f37d7c